[Event "SRB-chT 1st League Women 2018"]
[Site "Zajecar"]
[Date "2018.09.06"]
[Round "7"]
[White "Voiska, Margarita"]
[Black "Srdanovic, Jovana"]
[Result "1-0"]
[ECO "B10"]
[WhiteElo "2241"]
[BlackElo "2149"]
[Annotator "NA"]
[PlyCount "95"]
[EventDate "2018.08.31"]
[EventType "team-tourn"]
[EventCountry "SRB"]
[SourceTitle "playchess.com"]
[Source "ChessBase"]
[SourceQuality "1"]
[TimeControl "40/5400+30:1800+30"]

1. c4 {[%emt 0:00:00]} c6 {[%emt 0:00:00]} 2. e4 {[%emt 0:00:02]} d5 {[%emt 0:00:00]} 3. exd5 {[%emt 0:00:09]} cxd5 {[%emt 0:00:00]} 4. cxd5 {[%emt 0:00:15]} Nf6 {[%emt 0:00:00]} 5. Nc3 {[%emt 0:00:37]} Nxd5 {[%emt 0:01:00]} 6. Nf3 {[%emt 0:01:11]} e6 {[%emt 0:00:19]} 7. d4 {[%emt 0:02:07]} Nc6 {[%emt 0:01:22]} 8. Bb5 {[%emt 0:01:55]} Bb4 {[%emt 0:06:47]} 9. Bd2 {[%emt 0:04:48]} O-O {[%emt 0:02:32] B14: Caro-Kann: Panov-Botvinnik Attack with 5...e6 and 5...g6} 10. O-O {[%emt 0:05:52]} Be7 {[%emt 0:06:02]} 11. Qe2 $146 {[%emt 0:23:18]} ({Predecessor:} 11. Re1 Bf6 12. Bxc6 bxc6 13. Ne4 Qb6 14. Nxf6+ Nxf6 15. Qc2 a5 16. Rac1 Bb7 17. Qc5 {1-0 (42) Tari,A (2599)-Dudukin,I (2396) chess.com INT 2018}) 11... a6 {[%emt 0:17:15]} 12. Bxc6 {[%emt 0:02:28]} bxc6 {[%emt 0:00:20]} 13. Na4 {[%emt 0:07:03]} a5 {[%emt 0:02:49]} 14. Rfc1 {[%emt 0:01:14]} Ba6 {[%emt 0:01:01]} 15. Qe4 {[%emt 0:01:34]} Bb5 {[%emt 0:00:29]} 16. Nc5 {[%emt 0:03:52]} a4 {[%emt 0:00:24]} 17. a3 {[%emt 0:00:37]} Nf6 {[%emt 0:00:58]} 18. Qc2 {[%emt 0:02:16]} Qd5 {[%emt 0:01:23]} 19. Bb4 {[%emt 0:00:20]} Rfe8 {[%emt 0:05:24]} 20. Re1 {[%emt 0:07:44]} Bd6 {[%emt 0:01:28]} 21. Rad1 {[%emt 0:05:55]} Bc7 {[%emt 0:04:48]} 22. Ne5 {[%emt 0:03:21]} Red8 {[%emt 0:03:14]} 23. h3 {[%emt 0:01:35]} Bb6 {[%emt 0:00:29]} 24. Nb7 {[%emt 0:04:57]} Rdb8 {[%emt 0:00:46]} 25. Nd6 {[%emt 0:05:14]} Ra7 {[%emt 0:01:55]} 26. Nxb5 {[%emt 0:01:44]} cxb5 {[%emt 0:02:42]} 27. Nc6 {[%emt 0:01:03]} Rc7 {[%emt 0:02:37]} 28. Ne7+ {[%emt 0:00:11]} Rxe7 {[%emt 0:01:06]} 29. Bxe7 {[%emt 0:00:03]} Bxd4 {[%emt 0:04:00]} 30. Bb4 {[%emt 0:06:00]} e5 {[%emt 0:02:14]} 31. Qc7 {[%emt 0:02:47]} Rd8 {[%emt 0:02:25]} 32. Bc3 {[%emt 0:01:01]} Ne8 {[%emt 0:00:31]} 33. Qe7 {[%emt 0:00:38]} Nf6 {[%emt 0:00:27]} 34. Bxd4 {[%emt 0:01:26]} exd4 {[%emt 0:00:06]} 35. Rd3 {[%emt 0:02:26]} h6 {[%emt 0:00:56]} 36. Red1 {[%emt 0:01:03]} Re8 {[%emt 0:01:38]} 37. Qb4 {[%emt 0:00:05]} Qf5 {[%emt 0:02:41]} 38. Qxd4 {[%emt 0:00:43]} Re4 {[%emt 0:00:22]} 39. Qd8+ {[%emt 0:00:27]} Re8 {[%emt 0:00:17]} 40. Qd4 {[%emt 0:00:00]} Re4 {[%emt 0:00:00]} 41. Qd8+ {[%emt 0:04:23]} Re8 {[%emt 0:02:22]} 42. Rf3 $18 {[%emt 0:07:18]} Qc2 {[%emt 0:01:26]} 43. Qd2 {[%emt 0:00:19]} Qc5 {[%emt 0:00:27]} 44. Re3 {[%emt 0:00:54]} Rf8 {[%emt 0:01:40]} 45. Rd3 {[%emt 0:01:19]} Kh7 {[%emt 0:02:56]} 46. Rc3 {[%emt 0:04:11]} Qh5 {[%emt 0:02:08]} 47. Qc2+ {[%emt 0:00:25]} Kg8 {[%emt 0:01:04]} 48. Rc5 {[%emt 0:02:17]} 1-0

[Event "SRB-chT 1st League Women 2018"]
[Site "Zajecar"]
[Date "2018.09.06"]
[Round "7"]
[White "Sakotic, Ana"]
[Black "Vuckovic, Jovana"]
[Result "*"]
[ECO "B28"]
[WhiteElo "1706"]
[BlackElo "1992"]
[Annotator "NA"]
[PlyCount "47"]
[EventDate "2018.08.31"]
[EventType "team-tourn"]
[EventCountry "SRB"]
[SourceTitle "playchess.com"]
[Source "ChessBase"]
[SourceQuality "1"]
[TimeControl "40/5400+30:1800+30"]

1. e4 {[%emt 0:00:00]} c5 {[%emt 0:00:00]} 2. Nf3 {[%emt 0:00:00]} a6 {[%emt 0:00:00]} 3. c3 {[%emt 0:01:23]} d5 {[%emt 0:00:00]} 4. exd5 {[%emt 0:03:08]} Qxd5 {[%emt 0:00:04]} 5. Be2 {[%emt 0:00:54]} Nf6 {[%emt 0:01:52]} 6. h3 {[%emt 0:04:47]} Nc6 {[%emt 0:03:47]} 7. O-O {[%emt 0:00:50]} e6 {[%emt 0:08:27]} 8. Na3 {[%emt 0:03:35]} Be7 {[%emt 0:03:10]} 9. Nc2 {[%emt 0:01:07]} O-O {[%emt 0:02:17]} 10. d4 {[%emt 0:02:07]} cxd4 {[%emt 0:05:08]} 11. Ncxd4 {[%emt 0:00:43]} Nxd4 {[%emt 0:03:11]} 12. Nxd4 {[%emt 0:01:22]} e5 {[%emt 0:07:14]} 13. Nf3 {[%emt 0:05:13]} Qa5 {[%emt 0:04:09]} 14. Qc2 {[%emt 0:06:25]} Qc7 {[%emt 0:18:18]} 15. Bg5 {[%emt 0:09:26]} Re8 {[%emt 0:10:27]} 16. Rfe1 {[%emt 0:01:32]} h6 {[%emt 0:02:24]} 17. Bh4 {[%emt 0:00:31]} Nd7 {[%emt 0:03:55]} 18. Bxe7 {[%emt 0:01:00]} Rxe7 {[%emt 0:00:01]} 19. Bd3 $11 {[%emt 0:01:01]} Nc5 {[%emt 0:01:37]} 20. Rad1 {[%emt 0:01:56]} Bd7 {[%emt 0:04:13]} 21. Qd2 {[%emt 0:06:31]} Bc6 {[%emt 0:02:41]} 22. Be2 {[%emt 0:13:33]} Ne4 {[%emt 0:02:26]} 23. Qc2 {[%emt 0:02:00]} f5 {[%emt 0:03:29]} 24. Nh4 {[%emt 0:00:47]} *

[Event "SRB-chT 1st League Women 2018"]
[Site "Zajecar"]
[Date "2018.09.07"]
[Round "8"]
[White "Bojkovic, Natasa"]
[Black "Badelka, Olga"]
[Result "0-1"]
[ECO "B24"]
[WhiteElo "2384"]
[BlackElo "2404"]
[Annotator "NA"]
[PlyCount "72"]
[EventDate "2018.08.31"]
[EventType "team-tourn"]
[EventCountry "SRB"]
[SourceTitle "playchess.com"]
[Source "ChessBase"]
[SourceQuality "1"]
[TimeControl "40/5400+30:1800+30"]

1. e4 {[%emt 0:00:00]} c5 {[%emt 0:00:00]} 2. Nc3 {[%emt 0:00:01]} Nc6 {[%emt 0:00:00]} 3. Bb5 {[%emt 0:00:28]} Nd4 {[%emt 0:00:00]} 4. Nf3 {[%emt 0:00:29]} e6 {[%emt 0:00:16] LiveBook: 526 Games} 5. O-O {[%emt 0:02:15]} a6 {[%emt 0:00:07]} 6. Bd3 {[%emt 0:00:23]} Nxf3+ {[%emt 0:04:21]} 7. Qxf3 {[%emt 0:00:06]} d6 {[%emt 0:00:04] B30: Sicilian: 2...Nc6 3 Bb5, lines without ...g6} 8. b3 {[%emt 0:11:20]} Nf6 {[%emt 0:05:41]} 9. Qg3 {[%emt 0:04:39]} g6 {[%emt 0:04:42]} 10. Bb2 {[%emt 0:06:25]} Bg7 {[%emt 0:00:10]} 11. a4 $146 {[%emt 0:08:50]} ({Predecessor:} 11. Rae1 O-O 12. a4 d5 13. exd5 Nxd5 14. Nd1 Bd7 15. Bxg7 Kxg7 {½-½ (52) Movsesian,S (2630)-Sermek,D (2575) Pula 1997}) 11... O-O {[%emt 0:00:55]} 12. a5 {[%emt 0:01:49]} e5 {[%emt 0:04:40]} 13. Bc4 {[%emt 0:02:47]} Be6 {[%emt 0:02:24]} 14. Qd3 {[%emt 0:01:31]} Nh5 {[%emt 0:05:29]} 15. Ne2 {[%emt 0:00:29]} Bxc4 {[%emt 0:09:28]} 16. bxc4 {[%emt 0:15:53]} b5 {[%emt 0:00:38]} 17. axb6 {[%emt 0:01:51]} Qxb6 {[%emt 0:01:19]} 18. Bc3 {[%emt 0:00:29]} f5 {[%emt 0:08:13]} 19. exf5 {[%emt 0:06:45]} gxf5 {[%emt 0:00:49]} 20. Qh3 {[%emt 0:00:53]} Nf6 {[%emt 0:02:13]} 21. Qxf5 {[%emt 0:00:16]} Rae8 {[%emt 0:03:26]} 22. Qd3 {[%emt 0:00:35]} Qc6 {[%emt 0:07:34]} 23. Ng3 {[%emt 0:00:27]} Re6 {[%emt 0:07:57]} 24. Nf5 {[%emt 0:02:23]} Nh5 {[%emt 0:07:53]} 25. Qd5 $16 {[%emt 0:02:52]} Qe8 {[%emt 0:06:21]} 26. Nxg7 {[%emt 0:00:28]} Kxg7 {[%emt 0:00:08]} 27. g3 {[%emt 0:07:14]} Qg6 {[%emt 0:01:36]} 28. Kh1 {[%emt 0:04:39]} Ref6 {[%emt 0:00:51]} 29. Rxa6 {[%emt 0:01:39]} Qh6 {[%emt 0:06:30]} 30. Rb1 {[%emt 0:08:04]} Rxf2 {[%emt 0:03:12]} 31. Kg1 {[%emt 0:06:12]} Nf6 {[%emt 0:01:51]} 32. Qb7+ {[%emt 0:02:45]} Rf7 {[%emt 0:01:25]} 33. Qxf7+ {[%emt 0:00:50]} Kxf7 {[%emt 0:00:04]} 34. Kxf2 {[%emt 0:00:41]} Qxh2+ {[%emt 0:00:09]} 35. Kf3 {[%emt 0:00:12]} e4+ {[%emt 0:00:29]} 36. Kf4 {[%emt 0:00:12]} Qf2+ {[%emt 0:00:25]} 0-1

[Event "SRB-chT 1st League Women 2018"]
[Site "Zajecar"]
[Date "2018.09.07"]
[Round "8"]
[White "Chelushkina, Irina"]
[Black "Matkovic, Simana"]
[Result "*"]
[ECO "A00"]
[WhiteElo "2280"]
[BlackElo "1937"]
[Annotator "NA"]
[PlyCount "53"]
[EventDate "2018.08.31"]
[EventType "team-tourn"]
[EventCountry "SRB"]
[SourceTitle "playchess.com"]
[Source "ChessBase"]
[SourceQuality "1"]
[TimeControl "40/5400+30:1800+30"]

1. g3 {[%emt 0:00:00]} d5 {[%emt 0:00:00]} 2. Bg2 {[%emt 0:00:00]} Bf5 {[%emt 0:00:00]} 3. c4 {[%emt 0:00:08]} e6 {[%emt 0:09:33]} 4. cxd5 {[%emt 0:00:20]} exd5 {[%emt 0:00:33]} 5. Qb3 {[%emt 0:02:29]} Nf6 {[%emt 0:02:22]} 6. Qxb7 {[%emt 0:04:50]} Nbd7 {[%emt 0:00:15]} 7. d4 {[%emt 0:04:16]} c5 {[%emt 0:10:01]} 8. Nc3 {[%emt 0:14:35]} Nb6 {[%emt 0:12:01] [#]} 9. Nb5 $1 {[%emt 0:10:55]} Rb8 {[%emt 0:10:13]} (9... Rc8 $16) 10. Qxa7 {[%emt 0:03:44]} Na8 {[%emt 0:09:17]} 11. a4 {[%emt 0:03:32]} c4 {[%emt 0:16:37]} 12. Bd2 $18 {[%emt 0:03:42]} Be7 {[%emt 0:00:37]} 13. Nf3 {[%emt 0:06:40]} Ne4 {[%emt 0:02:22]} 14. Ne5 {[%emt 0:03:57]} Qc8 {[%emt 0:00:18]} 15. Bxe4 {[%emt 0:01:30]} Bxe4 {[%emt 0:01:06]} 16. f3 {[%emt 0:00:06]} Bf5 {[%emt 0:00:20]} 17. Nc6 {[%emt 0:02:56]} Rb7 {[%emt 0:01:14]} 18. Nxe7 {[%emt 0:00:06]} Kxe7 {[%emt 0:02:03]} 19. Qa6 {[%emt 0:02:46]} Rb6 {[%emt 0:00:34]} 20. Qa7+ {[%emt 0:01:39]} Kf6 {[%emt 0:01:27]} 21. e4 {[%emt 0:03:20]} dxe4 {[%emt 0:01:29]} 22. fxe4 {[%emt 0:01:25]} Re8 {[%emt 0:00:44]} 23. O-O {[%emt 0:11:45]} Rxe4 {[%emt 0:00:13]} 24. Rxf5+ {[%emt 0:00:11]} Kxf5 {[%emt 0:05:09]} 25. Qxf7+ {[%emt 0:00:17]} Kg4 {[%emt 0:02:53]} 26. Rf1 {[%emt 0:02:38]} Rf6 {[%emt 0:01:39]} 27. Qxg7+ {[%emt 0:00:07]} *

[Event "SRB-chT 1st League Women 2018"]
[Site "Zajecar"]
[Date "2018.09.07"]
[Round "8"]
[White "Injac, Teodora"]
[Black "Petrovic, Marija"]
[Result "1-0"]
[ECO "E94"]
[WhiteElo "2241"]
[BlackElo "2098"]
[Annotator "NA"]
[PlyCount "131"]
[EventDate "2018.08.31"]
[EventType "team-tourn"]
[EventCountry "SRB"]
[SourceTitle "playchess.com"]
[Source "ChessBase"]
[SourceQuality "1"]
[TimeControl "40/5400+30:1800+30"]

1. d4 {[%emt 0:00:00]} d6 {[%emt 0:00:00]} 2. Nf3 {[%emt 0:00:02]} g6 {[%emt 0:00:06]} 3. c4 {[%emt 0:00:15]} Bg7 {[%emt 0:00:08]} 4. Nc3 {[%emt 0:00:59]} Nd7 {[%emt 0:00:11]} 5. e4 {[%emt 0:00:23]} e5 {[%emt 0:00:12] LiveBook: 1354 Games} 6. Be2 {[%emt 0:00:41]} Ngf6 {[%emt 0:00:28]} 7. O-O {[%emt 0:00:23]} O-O {[%emt 0:00:07]} 8. Qc2 {[%emt 0:00:56]} Re8 {[%emt 0:09:25]} 9. Rd1 {[%emt 0:19:29]} c6 {[%emt 0:06:09]} 10. d5 {[%emt 0:04:31]} c5 {[%emt 0:01:07]} 11. a3 {[%emt 0:06:33]} Nf8 $146 {[%emt 0:01:22] E94: King's Indian: Classical: 6 Be2 e5 7 0-0: Various Black 7th moves} ({Predecessor:} 11... Nh5 12. g3 Bf8 13. Ne1 Ng7 14. b4 b6 15. Rb1 Be7 16. bxc5 bxc5 17. Ng2 f5 18. f3 Rf8 19. Qa4 {1-0 (50) Zakharov,A (2295)-Chernobay,A (2511) Sochi 2015}) 12. Ne1 {[%emt 0:01:47]} h6 {[%emt 0:03:09]} 13. b4 {[%emt 0:05:03]} b6 {[%emt 0:00:12]} 14. Rb1 {[%emt 0:03:08]} g5 {[%emt 0:00:10]} 15. bxc5 {[%emt 0:05:50]} bxc5 {[%emt 0:00:08]} 16. Qa4 {[%emt 0:00:17]} a5 {[%emt 0:04:41]} 17. f3 {[%emt 0:05:26]} Ng6 {[%emt 0:00:36]} 18. Nd3 {[%emt 0:05:54]} Bd7 {[%emt 0:02:03]} 19. Qc2 {[%emt 0:02:42]} Nf4 {[%emt 0:02:04]} 20. Nxf4 {[%emt 0:09:49]} (20. Bf1 $16) 20... exf4 {[%emt 0:10:42]} 21. Nb5 {[%emt 0:00:23]} Bxb5 {[%emt 0:00:20]} 22. Rxb5 {[%emt 0:00:34]} Nd7 {[%emt 0:00:32]} 23. Bb2 {[%emt 0:06:49]} Ne5 {[%emt 0:05:22]} 24. Rb1 {[%emt 0:01:43]} Ra7 {[%emt 0:03:59]} 25. Bc3 {[%emt 0:00:46]} Bf6 {[%emt 0:08:47]} 26. Qd2 {[%emt 0:02:38]} Qd7 {[%emt 0:02:29]} 27. Qb2 {[%emt 0:04:05]} Kg7 {[%emt 0:00:22]} 28. Kh1 {[%emt 0:00:58]} Rea8 {[%emt 0:04:03]} 29. Rb6 {[%emt 0:02:21]} Qc7 {[%emt 0:03:11]} 30. Rb7 {[%emt 0:02:29]} Rxb7 {[%emt 0:05:41]} 31. Qxb7 {[%emt 0:00:05]} Ra7 {[%emt 0:01:12]} 32. Qxc7 {[%emt 0:00:26]} Rxc7 {[%emt 0:00:02]} 33. Rb5 {[%emt 0:06:20]} Ra7 {[%emt 0:02:46]} 34. g3 {[%emt 0:01:55]} Nd7 {[%emt 0:02:43]} 35. Bd2 {[%emt 0:00:55]} Be5 {[%emt 0:00:57]} 36. Kg2 {[%emt 0:00:04]} Kf6 {[%emt 0:01:48]} 37. a4 {[%emt 0:00:17]} h5 {[%emt 0:02:35]} 38. Rxa5 {[%emt 0:00:45]} Rb7 {[%emt 0:00:44]} 39. Rb5 {[%emt 0:00:06]} Ra7 {[%emt 0:00:07]} 40. a5 {[%emt 0:00:00]} Kg6 {[%emt 0:00:00]} 41. Bd1 {[%emt 0:01:48]} h4 {[%emt 0:12:59]} 42. gxh4 {[%emt 0:02:03]} gxh4 {[%emt 0:00:02]} 43. Ba4 {[%emt 0:00:39]} f5 {[%emt 0:00:56]} 44. exf5+ {[%emt 0:05:25]} Kxf5 {[%emt 0:00:07]} 45. Rb1 {[%emt 0:00:53]} Bd4 {[%emt 0:05:29]} 46. Bxd7+ {[%emt 0:07:40]} Rxd7 {[%emt 0:00:06]} 47. a6 {[%emt 0:01:18]} Ra7 {[%emt 0:02:00]} (47... h3+ $142 48. Kf1 Ra7) 48. Rb6 {[%emt 0:00:35]} Ke5 {[%emt 0:03:41]} 49. Ba5 {[%emt 0:05:54]} h3+ {[%emt 0:04:10]} (49... Be3 $142 50. Rc6 Ra8 51. Bc3+ Bd4) 50. Kxh3 {[%emt 0:00:34]} Rh7+ {[%emt 0:00:09]} 51. Kg2 {[%emt 0:01:02]} Rg7+ {[%emt 0:00:05]} 52. Kf1 {[%emt 0:00:48]} Rg1+ {[%emt 0:00:08]} 53. Ke2 {[%emt 0:00:00]} Ra1 {[%emt 0:00:11]} 54. Rb5 {[%emt 0:00:43]} Ra2+ {[%emt 0:01:22]} 55. Kf1 $2 {[%emt 0:01:23]} Ra1+ $1 {[%emt 0:01:50]} 56. Kg2 {[%emt 0:01:25]} Ra2+ {[%emt 0:01:04]} 57. Kf1 {[%emt 0:00:58]} Ra1+ {[%emt 0:00:07]} 58. Ke2 {[%emt 0:00:02]} Ra2+ {[%emt 0:00:06]} 59. Kd1 $18 {[%emt 0:00:19]} Ra1+ $18 {[%emt 0:13:28]} 60. Kc2 {[%emt 0:00:14]} Ra2+ {[%emt 0:00:47]} 61. Kb3 {[%emt 0:00:37]} Rf2 {[%emt 0:03:11]} 62. a7 {[%emt 0:00:37]} Rxf3+ {[%emt 0:00:09]} 63. Ka4 {[%emt 0:01:18]} Rf1 {[%emt 0:01:22]} 64. a8=Q {[%emt 0:00:20]} Ra1+ {[%emt 0:00:35]} 65. Kb3 {[%emt 0:00:02]} f3 {[%emt 0:00:16]} 66. Qe8+ {[%emt 0:00:37] Kxd5} 1-0

[Event "SRB-chT 1st League Women 2018"]
[Site "Zajecar"]
[Date "2018.09.07"]
[Round "8"]
[White "Prudnikova, Svetlana"]
[Black "Velikic, Adela"]
[Result "*"]
[WhiteElo "2229"]
[BlackElo "2339"]
[Annotator "NA"]
[PlyCount "82"]
[EventDate "2018.08.31"]
[EventType "team-tourn"]
[EventCountry "SRB"]
[SourceTitle "playchess.com"]
[Source "ChessBase"]
[SourceQuality "1"]
[TimeControl "40/5400+30:1800+30"]

1. Nf3 {[%emt 0:00:00]} d5 {[%emt 0:00:00]} 2. d4 {[%emt 0:00:08]} Nf6 {[%emt 0:00:00]} 3. c4 {[%emt 0:00:28]} c6 {[%emt 0:00:00]} 4. Qc2 {[%emt 0:00:38]} dxc4 {[%emt 0:01:15]} 5. Qxc4 {[%emt 0:00:36] LiveBook: 3054 Games} Bf5 {[%emt 0:00:08]} 6. g3 {[%emt 0:05:43]} e6 {[%emt 0:00:47]} 7. Bg2 {[%emt 0:00:26]} Nbd7 {[%emt 0:00:56]} 8. O-O {[%emt 0:00:36]} Be7 {[%emt 0:01:12]} 9. Qb3 {[%emt 0:01:11]} Qb6 {[%emt 0:03:11]} 10. Nc3 {[%emt 0:03:03] D23: Queen's Gambit Accepted: 3 Nf3 Nf6 sidelines} (10. Nbd2 Qxb3 11. Nxb3 Be4 12. Rd1 h6 13. Ne1 Bxg2 14. Kxg2 O-O-O 15. Bd2 Bd6 16. f3 Bc7 17. Nd3 g5 {½-½ (31) Babic,D (2463)-Johnson,B (2463) ICCF email 2016}) 10... Ne4 {[%emt 0:05:46]} 11. Qxb6 {[%emt 0:12:51]} axb6 {[%emt 0:05:06]} 12. Nd2 {[%emt 0:06:14]} Nxc3 {[%emt 0:06:09]} 13. bxc3 {[%emt 0:00:05]} b5 $146 {[%emt 0:02:41]} ({Predecessor:} 13... Bc2 14. e4 e5 15. Bh3 exd4 16. cxd4 {½-½ (39) Volkov,D (2174)-Rikkinen,S Vladimir 2004}) 14. e4 {[%emt 0:01:28]} Bg6 {[%emt 0:05:01]} 15. c4 {[%emt 0:11:14]} bxc4 {[%emt 0:03:08]} 16. Nxc4 {[%emt 0:01:51]} Ra4 {[%emt 0:01:57]} 17. Ne3 {[%emt 0:01:34]} Rxd4 {[%emt 0:04:01]} 18. Bb2 {[%emt 0:00:06]} Ra4 {[%emt 0:00:28]} 19. Bxg7 {[%emt 0:01:12]} Rg8 {[%emt 0:00:16]} 20. Bc3 $17 {[%emt 0:03:52]} Bxe4 {[%emt 0:00:42]} 21. Bxe4 {[%emt 0:04:24]} Rxe4 {[%emt 0:00:56]} 22. a4 {[%emt 0:00:37]} Bc5 {[%emt 0:14:30]} 23. Rfb1 {[%emt 0:06:26]} b6 {[%emt 0:08:10]} 24. a5 {[%emt 0:00:40]} b5 {[%emt 0:03:49]} 25. a6 {[%emt 0:01:10]} Ke7 {[%emt 0:03:17]} 26. a7 {[%emt 0:01:07]} Ra8 {[%emt 0:00:36]} 27. Ra6 {[%emt 0:00:33]} Rxa7 {[%emt 0:17:20]} 28. Rxc6 {[%emt 0:00:25]} b4 {[%emt 0:01:22]} 29. Rxc5 {[%emt 0:02:37]} Nxc5 {[%emt 0:00:25]} 30. Bxb4 {[%emt 0:00:02]} Rc7 {[%emt 0:01:54]} 31. Kg2 {[%emt 0:01:47]} Kd7 {[%emt 0:06:06]} 32. Kf3 {[%emt 0:02:49]} Rd4 {[%emt 0:03:20]} 33. Bc3 {[%emt 0:07:27]} Ra4 {[%emt 0:00:35]} 34. Be5 {[%emt 0:00:24]} Rc6 {[%emt 0:00:57]} 35. Ng4 {[%emt 0:02:22]} f5 {[%emt 0:00:50]} 36. Nf6+ {[%emt 0:01:17]} Ke7 {[%emt 0:00:05]} 37. Nxh7 {[%emt 0:00:10]} Nd7 {[%emt 0:00:37]} 38. Rb7 {[%emt 0:00:57]} Kd8 {[%emt 0:00:46]} 39. Bb2 {[%emt 0:02:32]} Kc8 {[%emt 0:00:28]} 40. Rb3 {[%emt 0:00:00]} Ra2 {[%emt 0:00:00]} 41. Nf6 {[%emt 0:07:42]} Rxb2 {[%emt 0:02:48]} *

[Event "SRB-chT 1st League Women 2018"]
[Site "Zajecar"]
[Date "2018.09.07"]
[Round "8"]
[White "Urosevic, Marija"]
[Black "Eric, Jovana"]
[Result "1/2-1/2"]
[ECO "A41"]
[WhiteElo "2064"]
[BlackElo "2261"]
[Annotator "NA"]
[PlyCount "40"]
[EventDate "2018.08.31"]
[EventType "team-tourn"]
[EventCountry "SRB"]
[SourceTitle "playchess.com"]
[Source "ChessBase"]
[SourceQuality "1"]
[TimeControl "40/5400+30:1800+30"]

1. d4 {[%emt 0:00:00]} d6 {[%emt 0:00:00]} 2. c4 {[%emt 0:00:42]} e5 {[%emt 0:00:10]} 3. d5 {[%emt 0:02:37]} f5 {[%emt 0:01:15]} 4. e4 {[%emt 0:03:08]} fxe4 {[%emt 0:02:12]} 5. Nc3 {[%emt 0:04:26]} Nf6 {[%emt 0:02:03]} 6. h3 {[%emt 0:02:25]} Bf5 {[%emt 0:03:09]} 7. Be3 {[%emt 0:05:21]} Be7 {[%emt 0:03:56]} 8. Nge2 {[%emt 0:02:58]} O-O {[%emt 0:03:18]} 9. g4 {[%emt 0:03:59]} Bg6 {[%emt 0:00:22]} 10. Ng3 {[%emt 0:00:06]} Na6 {[%emt 0:11:28]} 11. h4 {[%emt 0:11:33]} Nc5 {[%emt 0:20:54]} 12. h5 {[%emt 0:03:57]} Be8 {[%emt 0:00:21]} 13. g5 {[%emt 0:03:44]} Nfd7 {[%emt 0:00:11]} 14. Ncxe4 {[%emt 0:00:35]} Nxe4 {[%emt 0:01:47]} 15. Nxe4 {[%emt 0:00:02]} Nc5 {[%emt 0:04:30]} 16. Nxc5 {[%emt 0:02:44]} dxc5 {[%emt 0:00:06]} 17. Qd2 {[%emt 0:01:57]} Qd6 $16 {[%emt 0:07:48]} 18. Bd3 {[%emt 0:11:04]} e4 {[%emt 0:09:50]} 19. Bc2 {[%emt 0:14:59]} Qe5 {[%emt 0:03:03]} 20. O-O-O {[%emt 0:00:16]} g6 {[%emt 0:11:58]} 1/2-1/2

[Event "SRB-chT 1st League Women 2018"]
[Site "Zajecar"]
[Date "2018.09.07"]
[Round "8"]
[White "Dimitrijevic, Andjela"]
[Black "Benderac, Ana"]
[Result "0-1"]
[ECO "B06"]
[WhiteElo "1736"]
[BlackElo "2239"]
[Annotator "NA"]
[PlyCount "82"]
[EventDate "2018.08.31"]
[EventType "team-tourn"]
[EventCountry "SRB"]
[SourceTitle "playchess.com"]
[Source "ChessBase"]
[SourceQuality "1"]
[TimeControl "40/5400+30:1800+30"]

1. e4 {[%emt 0:00:00]} d6 {[%emt 0:00:00]} 2. d4 {[%emt 0:00:02]} g6 {[%emt 0:00:00]} 3. Nc3 {[%emt 0:04:44]} Bg7 {[%emt 0:00:00]} 4. h3 {[%emt 0:02:05]} c6 {[%emt 0:00:43]} 5. a4 {[%emt 0:02:14]} Nd7 {[%emt 0:01:08]} 6. Nf3 {[%emt 0:01:32]} Qc7 {[%emt 0:01:40]} 7. Be2 {[%emt 0:07:43]} Ngf6 {[%emt 0:00:51]} 8. Be3 {[%emt 0:04:53]} O-O {[%emt 0:00:58]} 9. O-O {[%emt 0:00:26]} e5 {[%emt 0:02:59]} 10. dxe5 {[%emt 0:09:41]} dxe5 {[%emt 0:00:27]} 11. Qb1 {[%emt 0:10:18]} Re8 {[%emt 0:08:40]} 12. Qa2 {[%emt 0:05:56]} Nf8 {[%emt 0:07:44]} 13. Bc4 {[%emt 0:05:46]} Ne6 {[%emt 0:05:24]} 14. Ng5 {[%emt 0:10:31]} Nxg5 {[%emt 0:06:17]} 15. Bxg5 {[%emt 0:01:28]} h6 {[%emt 0:00:39]} 16. Be3 {[%emt 0:00:54]} Nh5 {[%emt 0:03:09]} 17. Rfd1 {[%emt 0:12:51]} Bf8 {[%emt 0:05:40]} 18. Rd2 {[%emt 0:06:14]} Nf4 {[%emt 0:03:33]} 19. Rad1 {[%emt 0:02:04]} Ne6 {[%emt 0:06:22]} 20. Ne2 {[%emt 0:02:26]} Kg7 {[%emt 0:05:04]} 21. c3 {[%emt 0:01:23]} a5 {[%emt 0:09:09]} 22. Ng3 {[%emt 0:05:05]} h5 {[%emt 0:03:48]} 23. Ne2 {[%emt 0:02:02]} Nc5 {[%emt 0:07:12]} 24. f3 {[%emt 0:00:16]} Qe7 {[%emt 0:03:22]} 25. Nc1 {[%emt 0:00:56]} Ne6 {[%emt 0:05:43]} 26. Nd3 {[%emt 0:00:16]} f6 {[%emt 0:00:13]} 27. Kh1 {[%emt 0:00:49]} g5 {[%emt 0:00:34]} 28. Nf2 {[%emt 0:00:32]} Nf4 {[%emt 0:04:51]} 29. Nd3 {[%emt 0:00:37]} Ne6 {[%emt 0:03:52]} 30. g4 {[%emt 0:00:12]} h4 {[%emt 0:03:59]} 31. Kg2 {[%emt 0:00:10]} Qc7 {[%emt 0:00:13]} 32. Kh1 {[%emt 0:00:32]} b6 {[%emt 0:00:18]} 33. Kh2 {[%emt 0:00:39]} Rb8 {[%emt 0:00:20]} 34. Bb3 {[%emt 0:00:54]} Bd6 {[%emt 0:01:09]} 35. Qa1 {[%emt 0:00:29]} Nd4 {[%emt 0:00:22]} 36. Bxd4 {[%emt 0:00:30]} exd4+ {[%emt 0:00:02]} 37. Kh1 {[%emt 0:00:32]} dxc3 {[%emt 0:01:04]} 38. bxc3 {[%emt 0:00:05]} Be7 {[%emt 0:00:43]} 39. Qa2 {[%emt 0:00:52]} Qg3 {[%emt 0:00:14]} 40. Ne1 {[%emt 0:00:00]} Qxh3+ {[%emt 0:00:00]} 41. Rh2 {[%emt 0:03:06]} Qf1# {[%emt 0:01:38]} 0-1